[Event "Late-Titled-Tuesday-Blitz-April-23-2024"]
[Site "Chess.com"]
[Date "2024.04.23"]
[Round "4"]
[White "Road2GM3000"]
[Black "katharinareinecke"]
[Result "1-0"]
[WhiteElo "2449"]
[BlackElo "2052"]
[TimeControl "180+1"]
[EndTime "14:38:08 PDT"]
[Termination "Road2GM3000 won by checkmate"]

1. d4 {[%clk 0:03:00.9]} 1... d5 {[%clk 0:02:58]} 2. c4 {[%clk 0:03:01.3]} 2...
c6 {[%clk 0:02:46.7]} 3. Nc3 {[%clk 0:03:01.6]} 3... e6 {[%clk 0:02:33.6]} 4.
cxd5 {[%clk 0:03:01.6]} 4... cxd5 {[%clk 0:02:23.2]} 5. Nf3 {[%clk 0:02:58]}
5... Nf6 {[%clk 0:02:22.8]} 6. Bg5 {[%clk 0:02:55.7]} 6... Be7 {[%clk
0:02:21.7]} 7. e3 {[%clk 0:02:54.1]} 7... O-O {[%clk 0:02:21.6]} 8. Bd3 {[%clk
0:02:54.7]} 8... h6 {[%clk 0:02:21.6]} 9. Bh4 {[%clk 0:02:54.7]} 9... Nc6 {[%clk
0:02:20.6]} 10. O-O {[%clk 0:02:54.7]} 10... a6 {[%clk 0:02:20.8]} 11. Rc1
{[%clk 0:02:55.1]} 11... Na5 {[%clk 0:02:15.9]} 12. Bb1 {[%clk 0:02:55.2]} 12...
b5 {[%clk 0:02:13.8]} 13. Qd3 {[%clk 0:02:54.1]} 13... g6 {[%clk 0:02:11]} 14.
Ne5 {[%clk 0:02:53.5]} 14... Nh5 {[%clk 0:01:46.8]} 15. Nxg6 {[%clk 0:02:47.3]}
15... Bxh4 {[%clk 0:01:26.3]} 16. Nxh4 {[%clk 0:02:32.1]} 16... f5 {[%clk
0:01:23.5]} 17. Nf3 {[%clk 0:02:30.3]} 17... Nc4 {[%clk 0:01:14.8]} 18. Ne2
{[%clk 0:02:14.8]} 18... Nxb2 {[%clk 0:01:03.4]} 19. Qb3 {[%clk 0:02:15.4]}
19... Nc4 {[%clk 0:00:58.3]} 20. Ne5 {[%clk 0:02:14.2]} 20... Bd7 {[%clk
0:00:50.3]} 21. Nf4 {[%clk 0:02:13.9]} 21... Nxf4 {[%clk 0:00:47.9]} 22. exf4
{[%clk 0:02:14.8]} 22... Kh7 {[%clk 0:00:42.8]} 23. Qh3 {[%clk 0:02:07.8]} 23...
Rg8 {[%clk 0:00:32.7]} 24. g4 {[%clk 0:02:05.8]} 24... Nd2 {[%clk 0:00:26.1]}
25. g5 {[%clk 0:02:02.5]} 25... Nxb1 {[%clk 0:00:04.2]} 26. Qxh6# {[%clk
0:02:01.4]} 1-0

[Event "Late-Titled-Tuesday-Blitz-April-23-2024"]
[Site "Chess.com"]
[Date "2024.04.23"]
[Round "4"]
[White "GP9isback23"]
[Black "zsizsi99"]
[Result "0-1"]
[WhiteElo "2658"]
[BlackElo "2492"]
[TimeControl "180+1"]
[EndTime "14:38:13 PDT"]
[Termination "zsizsi99 won by resignation"]

1. d4 {[%clk 0:03:00.1]} 1... Nf6 {[%clk 0:02:57]} 2. Nf3 {[%clk 0:03:00.1]}
2... d5 {[%clk 0:02:54.2]} 3. e3 {[%clk 0:02:57.8]} 3... c5 {[%clk 0:02:53]} 4.
Be2 {[%clk 0:02:58.1]} 4... Nc6 {[%clk 0:02:53.1]} 5. O-O {[%clk 0:02:58.6]}
5... e6 {[%clk 0:02:52.2]} 6. c4 {[%clk 0:02:59.3]} 6... dxc4 {[%clk 0:02:49]}
7. Bxc4 {[%clk 0:03:00.1]} 7... cxd4 {[%clk 0:02:49.5]} 8. exd4 {[%clk 0:03:00]}
8... Be7 {[%clk 0:02:45.9]} 9. Be3 {[%clk 0:02:38.1]} 9... O-O {[%clk
0:02:44.8]} 10. Qe2 {[%clk 0:02:38.5]} 10... b6 {[%clk 0:02:31]} 11. Rd1 {[%clk
0:02:37.5]} 11... Bb7 {[%clk 0:02:30.9]} 12. Nc3 {[%clk 0:02:38.2]} 12... Nb4
{[%clk 0:02:28.4]} 13. Ne5 {[%clk 0:02:33.9]} 13... Rc8 {[%clk 0:02:26.9]} 14.
Rac1 {[%clk 0:02:28.5]} 14... Nfd5 {[%clk 0:02:12.2]} 15. Bd3 {[%clk 0:02:24.5]}
15... Nxd3 {[%clk 0:02:09.3]} 16. Qxd3 {[%clk 0:02:08.6]} 16... Nxc3 {[%clk
0:01:58.5]} 17. bxc3 {[%clk 0:02:06.9]} 17... Qd5 {[%clk 0:01:58.8]} 18. f3
{[%clk 0:02:05]} 18... f6 {[%clk 0:01:13.4]} 19. Ng4 {[%clk 0:02:02.9]} 19... h5
{[%clk 0:01:13.2]} 20. Nf2 {[%clk 0:02:01.4]} 20... b5 {[%clk 0:01:12]} 21. Ne4
{[%clk 0:01:57.3]} 21... a6 {[%clk 0:01:05.1]} 22. Qe2 {[%clk 0:01:56]} 22...
Qc4 {[%clk 0:01:00.6]} 23. Qf2 {[%clk 0:01:52.9]} 23... f5 {[%clk 0:00:45.9]}
24. Nc5 {[%clk 0:01:27.1]} 24... f4 {[%clk 0:00:41.4]} 25. Bd2 {[%clk
0:01:27.1]} 25... Rxc5 {[%clk 0:00:39.3]} 0-1

[Event "Late-Titled-Tuesday-Blitz-April-23-2024"]
[Site "Chess.com"]
[Date "2024.04.23"]
[Round "4"]
[White "kylelancman"]
[Black "zano2023"]
[Result "1-0"]
[WhiteElo "2478"]
[BlackElo "2167"]
[TimeControl "180+1"]
[EndTime "14:38:13 PDT"]
[Termination "kylelancman won on time"]

1. e4 {[%clk 0:03:00.9]} 1... d6 {[%clk 0:00:16.9]} 2. d4 {[%clk 0:03:00.3]}
2... Nf6 {[%clk 0:00:17.4]} 3. Nc3 {[%clk 0:03:00]} 3... c6 {[%clk 0:00:17.8]}
4. f4 {[%clk 0:02:59.7]} 4... Qa5 {[%clk 0:00:16.6]} 5. Bd3 {[%clk 0:02:59.1]}
5... e5 {[%clk 0:00:15.7]} 6. Nf3 {[%clk 0:02:58.6]} 6... Bg4 {[%clk 0:00:15]}
7. Be3 {[%clk 0:02:57.4]} 7... Nbd7 {[%clk 0:00:14.7]} 8. O-O {[%clk 0:02:57.6]}
8... Be7 {[%clk 0:00:14.1]} 9. h3 {[%clk 0:02:57.3]} 9... Bh5 {[%clk 0:00:13.2]}
10. a3 {[%clk 0:02:53.4]} 10... Qc7 {[%clk 0:00:12.1]} 11. Qe1 {[%clk
0:02:47.1]} 11... O-O {[%clk 0:00:07.5]} 12. g4 {[%clk 0:02:36.4]} 12... exf4
{[%clk 0:00:06.8]} 13. Bxf4 {[%clk 0:02:36.4]} 13... Bg6 {[%clk 0:00:06.8]} 14.
e5 {[%clk 0:02:35.1]} 14... dxe5 {[%clk 0:00:06.4]} 15. dxe5 {[%clk 0:02:34.9]}
15... Nd5 {[%clk 0:00:06]} 16. Nxd5 {[%clk 0:02:29.9]} 16... cxd5 {[%clk
0:00:06]} 17. Qg3 {[%clk 0:02:28.2]} 17... Nc5 {[%clk 0:00:04.2]} 18. e6 {[%clk
0:02:22.4]} 18... Qc6 {[%clk 0:00:04.1]} 19. Bxg6 {[%clk 0:02:18.6]} 19... hxg6
{[%clk 0:00:02.9]} 20. exf7+ {[%clk 0:02:14.4]} 20... Rxf7 {[%clk 0:00:03.8]}
21. Ne5 {[%clk 0:02:14]} 21... Qb6 {[%clk 0:00:01.8]} 22. Kh1 {[%clk 0:01:53.6]}
1-0

[Event "Late-Titled-Tuesday-Blitz-April-23-2024"]
[Site "Chess.com"]
[Date "2024.04.23"]
[Round "4"]
[White "MatthewG-p4p"]
[Black "Firouzja2003"]
[Result "1/2-1/2"]
[WhiteElo "2918"]
[BlackElo "3104"]
[TimeControl "180+1"]
[EndTime "14:38:16 PDT"]
[Termination "Game drawn by repetition"]

1. e4 {[%clk 0:03:00.9]} 1... c5 {[%clk 0:02:58.6]} 2. c3 {[%clk 0:03:01.2]}
2... Nf6 {[%clk 0:02:58]} 3. e5 {[%clk 0:03:01.4]} 3... Nd5 {[%clk 0:02:57.7]}
4. Nf3 {[%clk 0:03:02.3]} 4... d6 {[%clk 0:02:56.3]} 5. Bc4 {[%clk 0:03:02.3]}
5... e6 {[%clk 0:02:56.6]} 6. d4 {[%clk 0:03:02]} 6... cxd4 {[%clk 0:02:56.2]}
7. cxd4 {[%clk 0:03:02.9]} 7... Be7 {[%clk 0:02:56.1]} 8. O-O {[%clk 0:03:02.7]}
8... O-O {[%clk 0:02:55.8]} 9. Bd2 {[%clk 0:02:55.2]} 9... dxe5 {[%clk
0:02:55.7]} 10. dxe5 {[%clk 0:02:55.6]} 10... b6 {[%clk 0:02:55.6]} 11. Qe2
{[%clk 0:02:55.6]} 11... Bb7 {[%clk 0:02:54.9]} 12. Nc3 {[%clk 0:02:56.3]} 12...
Nxc3 {[%clk 0:02:52.3]} 13. Bxc3 {[%clk 0:02:57.2]} 13... Nd7 {[%clk 0:02:52.7]}
14. Nd4 {[%clk 0:02:56.4]} 14... Rc8 {[%clk 0:02:41.8]} 15. f4 {[%clk
0:02:38.9]} 15... Qc7 {[%clk 0:02:38.8]} 16. Bd3 {[%clk 0:02:31]} 16... Nc5
{[%clk 0:02:35.8]} 17. Bc2 {[%clk 0:02:02.5]} 17... Ba6 {[%clk 0:02:15.2]} 18.
Nb5 {[%clk 0:02:02.5]} 18... Bxb5 {[%clk 0:02:09.3]} 19. Qxb5 {[%clk 0:02:03.4]}
19... a6 {[%clk 0:02:07.3]} 20. Qe2 {[%clk 0:02:02.4]} 20... b5 {[%clk
0:02:04.7]} 21. Kh1 {[%clk 0:01:46.7]} 21... Qb7 {[%clk 0:01:59.4]} 22. f5
{[%clk 0:01:44.4]} 22... exf5 {[%clk 0:01:56.3]} 23. Bxf5 {[%clk 0:01:43.7]}
23... Ne6 {[%clk 0:01:51.2]} 24. Qg4 {[%clk 0:01:43.3]} 24... Qb6 {[%clk
0:01:47.9]} 25. a3 {[%clk 0:01:21.3]} 25... Rc4 {[%clk 0:01:47.2]} 26. Qh3
{[%clk 0:01:18.7]} 26... g6 {[%clk 0:01:47.2]} 27. Bd3 {[%clk 0:01:18.3]} 27...
Rh4 {[%clk 0:01:46.6]} 28. Qg3 {[%clk 0:01:19]} 28... Rh5 {[%clk 0:01:32.5]} 29.
Rf3 {[%clk 0:01:03.5]} 29... Rg5 {[%clk 0:01:29.3]} 30. Qh3 {[%clk 0:01:03.8]}
30... Rh5 {[%clk 0:01:28.8]} 31. Qg3 {[%clk 0:01:04.3]} 31... Rg5 {[%clk
0:01:17.3]} 32. Qh3 {[%clk 0:01:04.7]} 32... Rh5 {[%clk 0:01:17.7]} 33. Qg3
{[%clk 0:01:05.2]} 1/2-1/2

[Event "Late-Titled-Tuesday-Blitz-April-23-2024"]
[Site "Chess.com"]
[Date "2024.04.23"]
[Round "4"]
[White "Supelyel"]
[Black "Perecke"]
[Result "0-1"]
[WhiteElo "2411"]
[BlackElo "2612"]
[TimeControl "180+1"]
[EndTime "14:38:18 PDT"]
[Termination "Perecke won by resignation"]

1. c4 {[%clk 0:02:43.2]} 1... e5 {[%clk 0:02:59.8]} 2. g3 {[%clk 0:02:42.3]}
2... Nf6 {[%clk 0:02:59.2]} 3. Bg2 {[%clk 0:02:42.4]} 3... d5 {[%clk 0:02:59.4]}
4. cxd5 {[%clk 0:02:42.5]} 4... Nxd5 {[%clk 0:03:00.3]} 5. Nf3 {[%clk
0:02:41.6]} 5... Nc6 {[%clk 0:03:00.2]} 6. O-O {[%clk 0:02:41.3]} 6... Nb6
{[%clk 0:03:00.5]} 7. d3 {[%clk 0:02:41.5]} 7... Be7 {[%clk 0:03:00.4]} 8. Nc3
{[%clk 0:02:42.1]} 8... O-O {[%clk 0:03:00.8]} 9. a3 {[%clk 0:02:42.5]} 9... Be6
{[%clk 0:03:00.9]} 10. b4 {[%clk 0:02:42.6]} 10... a5 {[%clk 0:03:01]} 11. b5
{[%clk 0:02:37.6]} 11... Nd4 {[%clk 0:03:01.3]} 12. Nxd4 {[%clk 0:02:31.2]}
12... exd4 {[%clk 0:03:01]} 13. Ne4 {[%clk 0:02:31.3]} 13... Bd5 {[%clk
0:02:58.2]} 14. Qc2 {[%clk 0:02:00.9]} 14... Rc8 {[%clk 0:02:37.2]} 15. Bb2
{[%clk 0:01:53.1]} 15... f5 {[%clk 0:02:36.3]} 16. Nd2 {[%clk 0:01:47.2]} 16...
Bxg2 {[%clk 0:02:34.9]} 17. Kxg2 {[%clk 0:01:48.1]} 17... Bf6 {[%clk 0:02:35.3]}
18. Nf3 {[%clk 0:01:35.7]} 18... Re8 {[%clk 0:02:28.1]} 19. Rfe1 {[%clk
0:01:34.4]} 19... Qd5 {[%clk 0:02:23.8]} 20. Rac1 {[%clk 0:01:21.1]} 20... Qf7
{[%clk 0:02:23.1]} 21. Bxd4 {[%clk 0:01:04.7]} 21... Bxd4 {[%clk 0:02:22.6]} 22.
Nxd4 {[%clk 0:01:05.6]} 22... Qd5+ {[%clk 0:02:22.7]} 23. Nf3 {[%clk 0:01:06]}
23... Qxb5 {[%clk 0:02:21.9]} 24. Qc5 {[%clk 0:01:00.4]} 24... Qd7 {[%clk
0:02:17]} 25. Qxa5 {[%clk 0:00:59]} 25... Nd5 {[%clk 0:02:14.6]} 26. Qc5 {[%clk
0:00:46.2]} 26... c6 {[%clk 0:02:14.3]} 27. Ne5 {[%clk 0:00:40.2]} 27... Rxe5
{[%clk 0:02:12.4]} 28. Kg1 {[%clk 0:00:36.2]} 28... f4 {[%clk 0:02:06.7]} 29.
Rc4 {[%clk 0:00:21.4]} 29... Qh3 {[%clk 0:01:56.7]} 0-1

[Event "Late-Titled-Tuesday-Blitz-April-23-2024"]
[Site "Chess.com"]
[Date "2024.04.23"]
[Round "4"]
[White "LiemLe"]
[Black "PepeCuenca"]
[Result "1-0"]
[WhiteElo "3054"]
[BlackElo "2822"]
[TimeControl "180+1"]
[EndTime "14:38:24 PDT"]
[Termination "LiemLe won by resignation"]

1. Nf3 {[%clk 0:03:00.9]} 1... Nf6 {[%clk 0:02:35]} 2. c4 {[%clk 0:02:59.3]}
2... g6 {[%clk 0:02:34.4]} 3. Nc3 {[%clk 0:02:59.2]} 3... Bg7 {[%clk 0:02:35.1]}
4. e4 {[%clk 0:02:59.4]} 4... d6 {[%clk 0:02:35.4]} 5. d4 {[%clk 0:03:00]} 5...
O-O {[%clk 0:02:35.5]} 6. Be2 {[%clk 0:03:00.7]} 6... Bg4 {[%clk 0:02:36]} 7.
Be3 {[%clk 0:03:00.2]} 7... Nfd7 {[%clk 0:02:36.3]} 8. Rc1 {[%clk 0:02:58.9]}
8... e5 {[%clk 0:02:36.5]} 9. d5 {[%clk 0:02:57]} 9... a5 {[%clk 0:02:37]} 10.
h3 {[%clk 0:02:53.4]} 10... Bxf3 {[%clk 0:02:36.9]} 11. Bxf3 {[%clk 0:02:54.3]}
11... f5 {[%clk 0:02:36.2]} 12. h4 {[%clk 0:02:34.4]} 12... f4 {[%clk
0:02:28.5]} 13. Bd2 {[%clk 0:02:34.5]} 13... h5 {[%clk 0:02:29.2]} 14. g4 {[%clk
0:02:27.1]} 14... fxg3 {[%clk 0:02:29.1]} 15. fxg3 {[%clk 0:02:26.9]} 15... Kh7
{[%clk 0:02:27.3]} 16. Bg5 {[%clk 0:02:16]} 16... Bf6 {[%clk 0:02:25.8]} 17. Be3
{[%clk 0:02:15.7]} 17... Na6 {[%clk 0:02:22.3]} 18. Kd2 {[%clk 0:02:06.4]} 18...
Bg7 {[%clk 0:02:18.3]} 19. g4 {[%clk 0:02:04]} 19... Bh6 {[%clk 0:02:12]} 20. g5
{[%clk 0:01:46.6]} 20... Bg7 {[%clk 0:02:12.1]} 21. Bxh5 {[%clk 0:01:24.6]}
21... gxh5 {[%clk 0:02:11]} 22. Qxh5+ {[%clk 0:01:25.5]} 22... Kg8 {[%clk
0:02:11.5]} 23. Rcf1 {[%clk 0:01:23.8]} 23... Qe7 {[%clk 0:01:39.5]} 24. Rf5
{[%clk 0:01:19.2]} 24... Ndc5 {[%clk 0:01:11.4]} 25. Rhf1 {[%clk 0:01:06.9]}
25... Rxf5 {[%clk 0:01:11.3]} 26. exf5 {[%clk 0:01:06.9]} 26... Qf7 {[%clk
0:01:00.1]} 27. g6 {[%clk 0:01:02.7]} 27... Qe7 {[%clk 0:00:59]} 28. Qh7+ {[%clk
0:01:00.7]} 28... Kf8 {[%clk 0:00:58.3]} 29. f6 {[%clk 0:01:01.6]} 1-0

[Event "Late-Titled-Tuesday-Blitz-April-23-2024"]
[Site "Chess.com"]
[Date "2024.04.23"]
[Round "4"]
[White "rasmussvane"]
[Black "MagnusCarlsen"]
[Result "0-1"]
[WhiteElo "2957"]
[BlackElo "3230"]
[TimeControl "180+1"]
[EndTime "14:38:25 PDT"]
[Termination "MagnusCarlsen won on time"]

1. Nf3 {[%clk 0:03:00.9]} 1... b6 {[%clk 0:02:58.1]} 2. g3 {[%clk 0:02:57.2]}
2... Bb7 {[%clk 0:02:59]} 3. Bg2 {[%clk 0:02:57.8]} 3... g6 {[%clk 0:02:59.1]}
4. O-O {[%clk 0:02:58.2]} 4... Bg7 {[%clk 0:02:58.7]} 5. d4 {[%clk 0:02:58.8]}
5... Nf6 {[%clk 0:02:58.5]} 6. c4 {[%clk 0:02:58.7]} 6... O-O {[%clk 0:02:58.7]}
7. Re1 {[%clk 0:02:59.1]} 7... Na6 {[%clk 0:02:48.2]} 8. Qc2 {[%clk 0:02:42.7]}
8... c5 {[%clk 0:02:30]} 9. d5 {[%clk 0:02:32.2]} 9... b5 {[%clk 0:02:29.7]} 10.
cxb5 {[%clk 0:01:56.1]} 10... Nb4 {[%clk 0:02:28.6]} 11. Qxc5 {[%clk 0:01:55.9]}
11... Nfxd5 {[%clk 0:02:28.8]} 12. Na3 {[%clk 0:01:55.5]} 12... a6 {[%clk
0:02:17.5]} 13. bxa6 {[%clk 0:01:41]} 13... Bxa6 {[%clk 0:02:13.8]} 14. Bd2
{[%clk 0:00:25.6]} 14... Rc8 {[%clk 0:02:09.4]} 15. Bxb4 {[%clk 0:00:22.4]}
15... Rxc5 {[%clk 0:02:08]} 16. Bxc5 {[%clk 0:00:23.3]} 16... Bxb2 {[%clk
0:02:06.1]} 17. Rab1 {[%clk 0:00:22.4]} 17... Qa5 {[%clk 0:01:55.2]} 18. Nc2
{[%clk 0:00:10.6]} 18... Qxc5 {[%clk 0:01:52.4]} 19. Rxb2 {[%clk 0:00:10.6]}
19... Qc3 {[%clk 0:01:52.7]} 20. Reb1 {[%clk 0:00:07.5]} 20... Bxe2 {[%clk
0:01:52.9]} 21. Nfd4 {[%clk 0:00:03.7]} 21... Bc4 {[%clk 0:01:52.4]} 22. a4
{[%clk 0:00:01.8]} 22... e6 {[%clk 0:01:46.8]} 0-1

[Event "Late-Titled-Tuesday-Blitz-April-23-2024"]
[Site "Chess.com"]
[Date "2024.04.23"]
[Round "4"]
[White "AsaHoffmann"]
[Black "2Coaches1Profile"]
[Result "0-1"]
[WhiteElo "2375"]
[BlackElo "2550"]
[TimeControl "180+1"]
[EndTime "14:38:30 PDT"]
[Termination "2Coaches1Profile won by resignation"]

1. d4 {[%clk 0:02:48.8]} 1... e6 {[%clk 0:02:58.1]} 2. e4 {[%clk 0:02:47]} 2...
b6 {[%clk 0:02:57.9]} 3. Bd3 {[%clk 0:02:44.7]} 3... Bb7 {[%clk 0:02:58.3]} 4.
Nd2 {[%clk 0:02:43.5]} 4... c5 {[%clk 0:02:54.5]} 5. c3 {[%clk 0:02:41.9]} 5...
cxd4 {[%clk 0:02:50.5]} 6. cxd4 {[%clk 0:02:41.6]} 6... Nc6 {[%clk 0:02:45.7]}
7. Ngf3 {[%clk 0:02:41.5]} 7... Nb4 {[%clk 0:02:44.2]} 8. Be2 {[%clk 0:02:27.5]}
8... Rc8 {[%clk 0:02:44]} 9. O-O {[%clk 0:02:27]} 9... Nf6 {[%clk 0:02:42.4]}
10. e5 {[%clk 0:01:59.2]} 10... Ne4 {[%clk 0:02:30.7]} 11. a3 {[%clk 0:01:53.4]}
11... Nxd2 {[%clk 0:02:10.6]} 12. Bxd2 {[%clk 0:01:48.5]} 12... Nd5 {[%clk
0:02:08.3]} 13. Bd3 {[%clk 0:01:43.9]} 13... Be7 {[%clk 0:02:08.4]} 14. Qe2
{[%clk 0:01:43.6]} 14... f5 {[%clk 0:02:00.6]} 15. exf6 {[%clk 0:01:41.3]} 15...
Nxf6 {[%clk 0:01:59.3]} 16. Rac1 {[%clk 0:01:39.4]} 16... O-O {[%clk 0:01:58.4]}
17. Rfe1 {[%clk 0:01:39]} 17... Rxc1 {[%clk 0:01:56.1]} 18. Bxc1 {[%clk
0:01:37.7]} 18... Qa8 {[%clk 0:01:56.9]} 19. Bg5 {[%clk 0:01:26.8]} 19... Bxf3
{[%clk 0:01:50.6]} 20. Qxf3 {[%clk 0:01:25.8]} 20... Qxf3 {[%clk 0:01:50]} 21.
gxf3 {[%clk 0:01:25.8]} 21... Nd5 {[%clk 0:01:49.9]} 22. Bxe7 {[%clk 0:01:21.8]}
22... Nxe7 {[%clk 0:01:50.8]} 23. Kg2 {[%clk 0:01:19.5]} 23... Rf4 {[%clk
0:01:41.9]} 24. Rd1 {[%clk 0:01:13.6]} 24... Kf7 {[%clk 0:01:28.2]} 25. Be4
{[%clk 0:01:07.6]} 25... d5 {[%clk 0:01:23.3]} 26. Bc2 {[%clk 0:01:07.2]} 26...
Nc6 {[%clk 0:01:19.6]} 27. Kg3 {[%clk 0:01:03.6]} 27... Rxd4 {[%clk 0:01:16.9]}
28. Rc1 {[%clk 0:01:02.2]} 28... Rc4 {[%clk 0:01:14.3]} 29. b3 {[%clk
0:00:59.7]} 29... Rc5 {[%clk 0:01:12.8]} 30. Kf4 {[%clk 0:00:52.3]} 30... Nd4
{[%clk 0:01:10]} 0-1

[Event "Late-Titled-Tuesday-Blitz-April-23-2024"]
[Site "Chess.com"]
[Date "2024.04.23"]
[Round "4"]
[White "BenchGM"]
[Black "dosto07"]
[Result "0-1"]
[WhiteElo "2237"]
[BlackElo "2491"]
[TimeControl "180+1"]
[EndTime "14:38:41 PDT"]
[Termination "dosto07 won on time"]

1. e4 {[%clk 0:03:00]} 1... e5 {[%clk 0:03:00]} 2. Nf3 {[%clk 0:02:59.9]} 2...
Nc6 {[%clk 0:02:59.5]} 3. Bb5 {[%clk 0:02:59]} 3... a6 {[%clk 0:02:59.7]} 4. Ba4
{[%clk 0:02:58.7]} 4... Nf6 {[%clk 0:03:00]} 5. O-O {[%clk 0:02:57.7]} 5... Be7
{[%clk 0:03:00.3]} 6. Re1 {[%clk 0:02:56.8]} 6... b5 {[%clk 0:03:00.4]} 7. Bb3
{[%clk 0:02:57.1]} 7... d6 {[%clk 0:03:01.3]} 8. c3 {[%clk 0:02:54.9]} 8... O-O
{[%clk 0:03:01.3]} 9. h3 {[%clk 0:02:54.8]} 9... Bb7 {[%clk 0:03:00.9]} 10. a4
{[%clk 0:02:49.6]} 10... Re8 {[%clk 0:02:55.7]} 11. d4 {[%clk 0:02:41.7]} 11...
Bf8 {[%clk 0:02:54.3]} 12. Nbd2 {[%clk 0:02:35.3]} 12... h6 {[%clk 0:02:53.3]}
13. Nf1 {[%clk 0:02:26]} 13... exd4 {[%clk 0:02:52.5]} 14. cxd4 {[%clk 0:01:50]}
14... Rxe4 {[%clk 0:02:51.8]} 15. Rxe4 {[%clk 0:01:15.6]} 15... Nxe4 {[%clk
0:02:50.9]} 16. Bd5 {[%clk 0:00:55]} 16... Nf6 {[%clk 0:02:49.2]} 17. Ne3 {[%clk
0:00:49.1]} 17... Nxd5 {[%clk 0:02:41.9]} 18. Nxd5 {[%clk 0:00:48.9]} 18... Ne7
{[%clk 0:02:40.8]} 19. Nf4 {[%clk 0:00:42.5]} 19... c5 {[%clk 0:02:34.5]} 20. d5
{[%clk 0:00:31.1]} 20... Qd7 {[%clk 0:02:20]} 21. Nh5 {[%clk 0:00:18.8]} 21...
Qf5 {[%clk 0:02:12.2]} 22. Nh4 {[%clk 0:00:14.3]} 22... Qxd5 {[%clk 0:02:08.3]}
23. Qg4 {[%clk 0:00:14.1]} 23... f5 {[%clk 0:01:57.7]} 24. Qg3 {[%clk
0:00:09.4]} 24... Qf7 {[%clk 0:01:51.6]} 25. Nf4 {[%clk 0:00:06.2]} 25... g5
{[%clk 0:01:50.2]} 26. Nd3 {[%clk 0:00:05]} 26... Bg7 {[%clk 0:01:46.7]} 27. Nf3
{[%clk 0:00:03.9]} 27... f4 {[%clk 0:01:46.5]} 28. Qg4 {[%clk 0:00:04]} 28...
Bc8 {[%clk 0:01:45.5]} 0-1

[Event "Late-Titled-Tuesday-Blitz-April-23-2024"]
[Site "Chess.com"]
[Date "2024.04.23"]
[Round "4"]
[White "ansko1999"]
[Black "Mikhail_Bryakin"]
[Result "0-1"]
[WhiteElo "2600"]
[BlackElo "2828"]
[TimeControl "180+1"]
[EndTime "14:38:45 PDT"]
[Termination "Mikhail_Bryakin won by resignation"]

1. Nc3 {[%clk 0:03:00.9]} 1... Nc6 {[%clk 0:02:55.4]} 2. e4 {[%clk 0:02:59.8]}
2... e5 {[%clk 0:02:55.4]} 3. Bc4 {[%clk 0:02:59]} 3... Nge7 {[%clk 0:02:54.8]}
4. d3 {[%clk 0:02:58.5]} 4... Ng6 {[%clk 0:02:55.2]} 5. h4 {[%clk 0:02:42.8]}
5... h5 {[%clk 0:02:54.4]} 6. Bg5 {[%clk 0:02:40.6]} 6... Be7 {[%clk 0:02:54.3]}
7. Nf3 {[%clk 0:02:39.1]} 7... Na5 {[%clk 0:02:51]} 8. Bd5 {[%clk 0:02:33.2]}
8... c6 {[%clk 0:02:51.3]} 9. Bxf7+ {[%clk 0:02:32.5]} 9... Kxf7 {[%clk
0:02:51.3]} 10. b4 {[%clk 0:02:32.6]} 10... Bf6 {[%clk 0:02:49.1]} 11. bxa5
{[%clk 0:02:28]} 11... Qxa5 {[%clk 0:02:50]} 12. Bd2 {[%clk 0:02:27.8]} 12...
Qc7 {[%clk 0:02:49]} 13. Ng5+ {[%clk 0:02:27.4]} 13... Kg8 {[%clk 0:02:49.4]}
14. g3 {[%clk 0:02:25]} 14... d6 {[%clk 0:02:49.7]} 15. Qb1 {[%clk 0:02:22.7]}
15... Qb6 {[%clk 0:02:43.9]} 16. Qb3+ {[%clk 0:02:19.5]} 16... Qxb3 {[%clk
0:02:43.9]} 17. axb3 {[%clk 0:02:20.4]} 17... Nf8 {[%clk 0:02:42.9]} 18. Ke2
{[%clk 0:02:17.1]} 18... Ne6 {[%clk 0:02:43.3]} 19. Nxe6 {[%clk 0:02:15.3]}
19... Bxe6 {[%clk 0:02:44.2]} 20. Be3 {[%clk 0:02:13.2]} 20... a6 {[%clk
0:02:44.5]} 21. Bg5 {[%clk 0:02:08.7]} 21... Kf7 {[%clk 0:02:43.8]} 22. Bxf6
{[%clk 0:02:08.4]} 22... gxf6 {[%clk 0:02:44.7]} 23. Nd1 {[%clk 0:02:06.7]}
23... f5 {[%clk 0:02:43.1]} 24. exf5 {[%clk 0:01:58.6]} 24... Bxf5 {[%clk
0:02:42.6]} 25. Ne3 {[%clk 0:01:58.9]} 25... Be6 {[%clk 0:02:43.1]} 26. f3
{[%clk 0:01:53.2]} 26... Rag8 {[%clk 0:02:41.8]} 27. Rag1 {[%clk 0:01:51.9]}
27... d5 {[%clk 0:02:41.9]} 28. g4 {[%clk 0:01:45]} 28... Kf6 {[%clk 0:02:41.9]}
29. g5+ {[%clk 0:01:40.9]} 29... Kg6 {[%clk 0:02:40.7]} 30. Rf1 {[%clk
0:01:39.3]} 30... Rf8 {[%clk 0:02:41]} 31. Rh2 {[%clk 0:01:36.4]} 31... Rf4
{[%clk 0:02:39.5]} 32. Ng2 {[%clk 0:01:33.7]} 32... Rf7 {[%clk 0:02:40.1]} 33.
Ne3 {[%clk 0:01:25.2]} 33... Rhf8 {[%clk 0:02:40.2]} 34. Rhf2 {[%clk 0:01:25.3]}
34... Bh3 {[%clk 0:02:39.8]} 35. Ng2 {[%clk 0:01:18.2]} 35... Bxg2 {[%clk
0:02:37.2]} 36. Rxg2 {[%clk 0:01:18.5]} 36... Rf4 {[%clk 0:02:38.1]} 37. Rh2
{[%clk 0:01:14.2]} 37... a5 {[%clk 0:02:38.4]} 38. Rh3 {[%clk 0:01:11.8]} 38...
b5 {[%clk 0:02:37.5]} 39. Ra1 {[%clk 0:01:10.4]} 39... Ra8 {[%clk 0:02:38.1]}
40. Ke3 {[%clk 0:01:02.1]} 40... a4 {[%clk 0:02:37.3]} 41. bxa4 {[%clk
0:01:02.1]} 41... bxa4 {[%clk 0:02:37.9]} 42. Ra3 {[%clk 0:01:01.2]} 42... Kf5
{[%clk 0:02:31.8]} 43. Rh1 {[%clk 0:00:56.8]} 43... c5 {[%clk 0:02:30.4]} 44. c3
{[%clk 0:00:54.4]} 44... c4 {[%clk 0:02:26.9]} 45. d4 {[%clk 0:00:51.1]} 45...
exd4+ {[%clk 0:02:26.5]} 46. cxd4 {[%clk 0:00:52]} 46... Re8+ {[%clk 0:02:26.8]}
47. Kf2 {[%clk 0:00:50.4]} 47... Rxd4 {[%clk 0:02:27.3]} 48. Rxa4 {[%clk
0:00:48.4]} 48... Kf4 {[%clk 0:02:27.5]} 49. Ra2 {[%clk 0:00:43.9]} 49... Re3
{[%clk 0:02:27.7]} 50. Rh3 {[%clk 0:00:40.7]} 50... Rdd3 {[%clk 0:02:28.2]} 51.
Kg2 {[%clk 0:00:37.2]} 51... c3 {[%clk 0:02:23.2]} 52. Ra4+ {[%clk 0:00:30.2]}
52... d4 {[%clk 0:02:23.2]} 53. g6 {[%clk 0:00:23.6]} 53... Rd2+ {[%clk
0:02:23.5]} 54. Kf1 {[%clk 0:00:23.4]} 54... c2 {[%clk 0:02:24.2]} 55. Rc4
{[%clk 0:00:18.1]} 55... Rc3 {[%clk 0:02:24.4]} 0-1